bitfinex-derivatives/quotes_SOLF0:USTF0_20220110
["timestamp","ask_amount","ask_price","bid_price","bid_amount"]
[1641811544980,4.00893524,141.22,141.19,0.80178705]
[1641811545181,4.00893524,141.22,141.2,2.40075445]
[1641811545881,4.00893524,141.22,141.21,0.80178705]
[1641811546782,4.00893524,141.22,141.21,3.2025415]
[1641811550585,4.00893524,141.22,141.21,0.80178705]
[1641811551187,4.00893524,141.22,141.21,3.20337782]
[1641811551387,4.00893524,141.22,141.21,2.40159077]
[1641811551792,4.00893524,141.22,141.21,3.20337782]
[1641811551987,4.00893524,141.22,141.21,0.80178705]
[1641811552591,4.00893524,141.22,141.21,3.20337782]
[1641811552793,4.00893524,141.22,141.21,2.40159077]
[1641811553190,4.00893524,141.22,141.21,3.20337782]
[1641811558296,11.30493524,141.22,141.21,3.20337782]
[1641811560097,7.296,141.22,141.21,3.20337782]
[1641811560598,11.30553891,141.22,141.21,3.20337782]
[1641811565405,12.69912023,141.25,141.21,3.20337782]
[1641811565604,2.0,141.25,141.21,3.20337782]
[1641811566207,2.0,141.25,141.22,0.80178705]
[1641811568110,2.0,141.25,141.23,2.40159077]
[1641811568510,2.0,141.25,141.24,0.80178705]
[1641811568910,6.00856815,141.25,141.24,0.80178705]
[1641811569310,6.00856815,141.25,141.24,3.20337782]
[1641811571114,6.00856815,141.25,141.24,10.06437782]
[1641811571311,56.76652218,141.31,141.24,10.06437782]
[1641811571612,41.80923934,141.31,141.24,10.06437782]
[1641811572010,39.80923934,141.31,141.24,9.26259077]
[1641811572411,4.00771048,141.3,141.25,0.8015421]
[1641811573314,4.00771048,141.31,141.25,7.20313287]
[1641811573513,4.00771048,141.31,141.25,8.97113287]
[1641811573716,4.00771048,141.31,141.26,4.8015421]
[1641811573914,4.00771048,141.31,141.27,1.768]
[1641811574213,4.00771048,141.33,141.27,0.8015421]
[1641811574514,4.00771048,141.33,141.27,12.48513287]
[1641811574914,4.00771048,141.33,141.27,49.22363287]
[1641811575114,10.34,141.36,141.27,49.22363287]
[1641811575115,4.00771048,141.35,141.28,0.8015421]
[1641811575313,4.00771048,141.35,141.28,3.20313287]
[1641811575513,2.0,141.31,141.28,3.20313287]
[1641811575916,2.0,141.31,141.29,0.8015421]
[1641811576318,2.0,141.31,141.28,0.8015421]
[1641811576717,6.79069517,141.37,141.28,0.8015421]
[1641811576918,6.79069517,141.37,141.29,2.39270169]
[1641811577116,50.55718284,141.39,141.29,2.39270169]
[1641811577317,4.00693063,141.36,141.29,2.39270169]
[1641811577518,4.00693063,141.36,141.33,2.0]
[1641811577717,2.58883737,141.38,141.33,7.295]
[1641811577718,6.595768,141.38,141.33,7.295]
[1641811578320,4.00693063,141.37,141.33,7.295]
[1641811578519,4.00693063,141.37,141.36,2.0]
[1641811578719,4.00693063,141.37,141.36,8.708]
[1641811579321,4.00693063,141.37,141.36,9.50930219]
[1641811579521,4.00693063,141.38,141.36,9.50930219]
[1641811579821,4.00693063,141.38,141.36,7.50930219]
[1641811580021,4.00693063,141.4,141.37,0.80130219]
[1641811580723,1.19869781,141.37,141.36,8.708]
[1641811581122,0.39739781,141.37,141.36,8.708]
[1641811581723,20.2094026,141.45,141.36,8.708]
[1641811581924,0.42996398,141.37,141.36,7.5091328]
[1641811582123,14.55988284,141.45,141.36,9.5091328]
[1641811582324,19.18254015,141.44,141.4,2.0]
[1641811582524,19.18254015,141.44,141.4,8.923]
[1641811582822,39.72362962,141.48,141.41,2.0]
[1641811583025,9.07088563,141.49,141.41,2.0]
[1641811583523,21.83981533,141.48,141.4,8.923]
[1641811583923,21.83981533,141.48,141.44,2.0]
[1641811584126,24.41440643,141.48,141.44,7.853]
[1641811584325,2.5745911,141.48,141.44,7.853]
[1641811584724,4.00500116,141.47,141.44,7.853]
[1641811586126,4.00500116,141.48,141.44,7.853]
[1641811586727,21.91782427,141.48,141.44,5.853]
[1641811586926,21.91782427,141.48,141.42,2.0]
[1641811587126,29.58982427,141.48,141.37,1.766]
[1641811587325,37.24461953,141.48,141.41,2.0]
[1641811587526,17.91282311,141.47,141.38,1.22399592]
[1641811587726,21.91782427,141.47,141.41,2.0]
[1641811588326,21.91782427,141.47,141.4,7.98]
[1641811588528,4.00500116,141.47,141.43,2.0]
[1641811588727,4.00500116,141.47,141.43,9.149]
[1641811589329,5.65622543,141.44,141.43,9.149]
[1641811589727,9.66122659,141.44,141.43,9.149]
[1641811590530,4.00500116,141.44,141.43,9.149]
[1641811591130,21.9189498,141.46,141.43,9.149]
[1641811592032,4.00500116,141.46,141.43,9.149]
[1641811593731,4.00500116,141.46,141.4,34.0264]
[1641811594433,4.00500116,141.46,141.42,2.0]
[1641811594833,4.00500116,141.46,141.4,34.0264]
[1641811595233,4.00500116,141.46,141.43,2.0]
[1641811595433,4.00500116,141.46,141.44,2.0]
[1641811595834,21.91618103,141.48,141.44,2.0]
[1641811596334,4.00500116,141.45,141.42,2.0]
[1641811596533,4.00500116,141.47,141.42,2.0]
[1641811596935,4.00500116,141.47,141.4,34.0264]
[1641811597335,4.00500116,141.47,141.43,2.0]
[1641811597536,4.00500116,141.47,141.44,2.0]
[1641811597735,4.00500116,141.47,141.43,6.624]
[1641811597934,5.65505059,141.47,141.43,6.624]
[1641811598337,4.00500116,141.46,141.43,6.624]
[1641811598536,4.00500116,141.46,141.43,8.624]
[1641811599137,4.00500116,141.46,141.43,6.624]
[1641811599337,4.00500116,141.46,141.41,2.0]
[1641811599537,6.00500116,141.46,141.41,2.0]
[1641811599739,2.0,141.45,141.38,1.766]
[1641811599939,2.0,141.43,141.37,34.9027]
[1641811600138,7.697,141.43,141.37,34.9027]
[1641811600338,5.697,141.43,141.37,34.9027]
[1641811600539,11.35375122,141.43,141.37,34.9027]
[1641811600739,4.00500116,141.42,141.38,1.22465611]
[1641811601038,5.6574834,141.41,141.38,1.22465611]
[1641811601740,4.00500116,141.4,141.37,1.22465611]
[1641811602141,4.00500116,141.42,141.36,1.22465611]
[1641811602741,4.00500116,141.43,141.37,2.0]
[1641811603041,4.00500116,141.41,141.37,2.0]
[1641811603640,4.00500116,141.43,141.38,1.22465611]
[1641811606044,4.00500116,141.43,141.37,2.0]
[1641811606545,4.00500116,141.43,141.36,1.22465611]
[1641811606746,4.00500116,141.43,141.38,1.22465611]
[1641811606947,4.00500116,141.43,141.37,3.22465611]
[1641811607447,4.00500116,141.43,141.38,1.22465611]
[1641811608347,2.59288848,141.42,141.38,9.54465611]
[1641811608747,4.00500116,141.41,141.38,8.32]
[1641811610750,4.00500116,141.43,141.38,8.32]
[1641811610950,6.00500116,141.43,141.38,8.32]
[1641811611550,2.59414767,141.42,141.38,8.32]
[1641811611751,6.59914883,141.42,141.38,8.32]
[1641811612151,4.00500116,141.41,141.38,8.32]
[1641811612451,6.59914883,141.41,141.38,8.32]
[1641811613051,4.00500116,141.4,141.38,8.32]
[1641811613653,4.00500116,141.4,141.35,38.6187]
[1641811613854,18.97879085,141.42,141.35,38.6187]
[1641811614053,18.97879085,141.42,141.35,46.7387]
[1641811614255,4.00500116,141.41,141.36,1.22522006]
[1641811614653,6.59860625,141.41,141.36,3.22522006]
[1641811615054,4.00500116,141.4,141.37,1.22522006]
[1641811615357,6.59860625,141.4,141.37,1.22522006]
[1641811615855,6.59860625,141.4,141.38,2.0]
[1641811616155,4.00500116,141.39,141.38,8.99]
[1641811616557,1.16e-06,141.39,141.38,8.99]
[1641811616955,21.76143029,141.44,141.38,8.99]
[1641811617159,2.59296859,141.43,141.38,11.38611867]
[1641811617858,4.0046735,141.42,141.38,11.38611867]
[1641811618057,4.0046735,141.42,141.41,2.0]
[1641811618259,4.0046735,141.42,141.41,9.806]
[1641811618665,4.0046735,141.45,141.41,9.806]
[1641811619560,4.0046735,141.46,141.41,9.806]
[1641811620362,2.59249624,141.45,141.41,9.806]
[1641811620860,2.59249624,141.45,141.41,7.806]
[1641811621060,4.0046735,141.44,141.41,7.806]
[1641811622459,4.0046735,141.45,141.41,7.806]
[1641811623261,2.59271897,141.44,141.39,34.1126]
[1641811623662,4.0046735,141.43,141.39,34.1126]
[1641811623862,4.0046735,141.43,141.38,8.402]
[1641811625366,4.0046735,141.43,141.4,2.0]
[1641811625863,4.0046735,141.43,141.38,8.402]
[1641811626064,4.0046735,141.45,141.38,8.402]
[1641811626265,4.0046735,141.45,141.44,2.0]
[1641811626565,4.0046735,141.45,141.44,8.027]
[1641811627365,4.0046735,141.46,141.44,8.027]
[1641811627766,4.0046735,141.46,141.44,6.027]
[1641811629369,4.0046735,141.46,141.44,8.027]
[1641811629871,2.0,141.46,141.45,2.0]
[1641811630070,14.97378969,141.49,141.45,2.0]
[1641811630271,14.97378969,141.5,141.45,2.0]
[1641811630471,14.97378969,141.5,141.44,6.027]
[1641811630670,12.97378969,141.5,141.44,6.027]
[1641811630870,12.97378969,141.5,141.45,2.0]
[1641811631069,12.97378969,141.5,141.43,9.06563979]
[1641811631269,21.40578969,141.5,141.44,2.0]
[1641811631471,4.0031896,141.49,141.45,2.39398702]
[1641811631670,4.0031896,141.49,141.45,4.39398702]
[1641811631869,4.0031896,141.49,141.45,5.2987846]
[1641811632270,4.0031896,141.49,141.46,2.90479758]
[1641811632569,4.0031896,141.49,141.46,4.90479758]
[1641811633172,4.0031896,141.49,141.47,2.90479758]
[1641811633570,4.0031896,141.49,141.46,2.0]
[1641811634370,8.305,141.49,141.47,4.90479758]
[1641811634772,8.305,141.49,141.48,2.90479758]
[1641811635677,8.305,141.49,141.44,35.0848]
[1641811635872,7.65453361,141.48,141.42,2.0]
[1641811636372,7.65453361,141.48,141.45,2.90533646]
[1641811636572,2.0,141.47,141.43,2.90533646]
[1641811636772,7.65453361,141.48,141.43,2.90533646]
[1641811637972,7.65453361,141.48,141.42,2.90533646]
[1641811638374,7.65453361,141.48,141.42,4.90533646]
[1641811638772,7.65453361,141.48,141.43,2.90533646]
[1641811639374,5.6549776,141.47,141.43,2.90533646]
[1641811639573,5.6549776,141.47,141.43,4.90533646]
[1641811639773,5.6549776,141.47,141.43,2.0]
[1641811639976,5.6549776,141.47,141.42,2.90533646]
[1641811640274,5.6549776,141.47,141.44,2.90533646]
[1641811640574,5.6549776,141.47,141.43,2.90533646]
[1641811641075,5.6549776,141.47,141.42,2.90533646]
[1641811642274,5.6549776,141.47,141.43,2.0]
[1641811642976,5.6549776,141.47,141.44,2.90533646]
[1641811643476,5.6549776,141.47,141.43,2.0]
[1641811643875,5.6549776,141.47,141.44,2.90533646]
[1641811644076,5.6549776,141.47,141.44,11.36033646]
[1641811644777,5.6549776,141.47,141.45,2.90533646]
[1641811646878,5.6549776,141.47,141.44,2.90533646]
[1641811647279,5.6549776,141.47,141.42,2.90533646]
[1641811649882,4.00357421,141.46,141.42,2.90533646]
[1641811650182,4.00357421,141.46,141.43,2.0]
[1641811650383,4.00357421,141.46,141.42,2.90533646]
[1641811650583,4.00357421,141.46,141.42,4.90533646]
[1641811650782,4.00357421,141.46,141.44,2.90533646]
[1641811651185,4.00357421,141.46,141.43,2.90533646]
[1641811652182,4.00357421,141.46,141.43,4.90533646]
[1641811652384,4.00357421,141.46,141.44,2.0]
[1641811652783,4.00357421,141.46,141.45,2.90533646]
[1641811653685,6.59698166,141.46,141.45,2.90533646]
[1641811654685,12.25229509,141.46,141.45,2.90533646]
[1641811654885,12.25229509,141.46,141.42,2.90533646]
[1641811655084,19.03429509,141.46,141.42,2.90533646]
[1641811655285,5.65645582,141.44,141.42,2.90533646]
[1641811655887,4.00357421,141.43,141.4,2.90533646]
[1641811656188,4.00357421,141.43,141.39,7.06788706]
[1641811656886,4.00357421,141.43,141.42,2.0]
[1641811657087,4.00357421,141.43,141.4,2.39830168]
[1641811657586,4.00357421,141.43,141.38,2.39830168]
[1641811658288,4.00357421,141.43,141.38,12.1216858]
[1641811658688,4.00357421,141.43,141.41,2.0]
[1641811658888,4.00357421,141.43,141.38,12.1216858]
[1641811659086,5.65645582,141.44,141.38,12.1216858]
[1641811659788,5.65645582,141.44,141.42,2.0]
[1641811659988,2.0,141.43,141.42,2.0]
[1641811660389,2.0,141.43,141.42,4.39830168]
[1641811666399,2.0,141.43,141.42,2.39830168]
[1641811666702,7.65657599,141.43,141.42,2.39830168]
[1641811667298,6.00379106,141.43,141.42,4.39830168]
[1641811667697,2.0,141.43,141.42,4.39830168]
[1641811668701,2.0,141.43,141.42,2.39830168]
[1641811669802,2.0,141.43,141.4,14.97955414]
[1641811670001,2.0,141.43,141.42,2.0]
[1641811670203,6.78659734,141.46,141.42,9.853]
[1641811670402,6.78659734,141.46,141.44,2.0]
[1641811670602,14.97955414,141.48,141.45,2.0]
[1641811670802,12.97955414,141.48,141.47,2.0]
[1641811671409,4.00247267,141.48,141.47,4.90422386]
[1641811671903,4.00247267,141.5,141.47,4.90422386]
[1641811672305,8.14056752,141.52,141.47,2.90422386]
[1641811672505,49.98294312,141.54,141.51,2.0]
[1641811672703,39.72362962,141.54,141.51,9.326]
[1641811672903,49.48957906,141.56,141.51,9.326]
[1641811673105,4.00151053,141.53,141.52,4.90422386]
[1641811673504,4.00151053,141.55,141.52,4.90422386]
[1641811673905,4.00151053,141.55,141.52,2.0]
[1641811673906,6.00151053,141.55,141.52,2.0]
[1641811674104,6.00151053,141.55,141.51,9.326]
[1641811674306,4.00151053,141.54,141.52,2.0]
[1641811674607,4.00151053,141.54,141.51,9.326]
[1641811674806,2.59136788,141.54,141.51,9.326]
[1641811675407,7.198,141.54,141.51,9.326]
[1641811675707,4.00151053,141.53,141.52,2.90332215]
[1641811676109,6.00151053,141.53,141.5,2.0]
[1641811676508,4.00151053,141.52,141.51,2.90357449]
[1641811676808,6.00151053,141.52,141.51,2.90357449]
[1641811677111,4.00151053,141.52,141.51,4.90357449]
[1641811677309,4.00151053,141.52,141.51,2.90357449]
[1641811678810,4.00151053,141.52,141.49,2.90357449]
[1641811679712,4.00151053,141.52,141.47,2.90357449]
[1641811680210,4.00151053,141.52,141.5,2.0]
[1641811680811,4.00151053,141.52,141.51,2.90357449]
[1641811682415,4.00151053,141.52,141.47,2.90357449]
[1641811682915,4.00151053,141.55,141.47,2.90357449]
[1641811683316,4.00151053,141.55,141.5,2.0]
[1641811683918,4.00151053,141.55,141.51,2.90357449]
[1641811684618,4.00151053,141.55,141.49,2.90357449]
[1641811685518,4.00151053,141.55,141.47,9.96721792]
[1641811685917,4.00151053,141.55,141.48,2.90357449]
[1641811686819,9.65340508,141.55,141.48,2.90357449]
[1641811687221,4.00151053,141.54,141.48,2.90357449]
[1641811688422,5.65253413,141.53,141.48,2.90357449]
[1641811688722,5.65253413,141.53,141.49,2.0]
[1641811688923,5.65292313,141.52,141.49,2.0]
[1641811689123,18.16043366,141.52,141.49,2.0]
[1641811689526,4.00151053,141.51,141.5,2.90357449]
[1641811692627,4.00151053,141.51,141.5,4.90357449]
[1641811693429,4.00151053,141.53,141.5,4.90357449]
[1641811693627,4.00151053,141.53,141.5,2.90357449]
[1641811693828,4.00151053,141.53,141.51,2.90357449]
[1641811694227,4.00151053,141.53,141.47,2.90357449]
[1641811695831,4.00151053,141.53,141.5,2.0]
[1641811696333,4.00151053,141.53,141.48,7.687]
[1641811696533,4.00151053,141.53,141.51,2.90357449]
[1641811700640,2.0,141.52,141.51,2.90357449]
[1641811700838,13.6050572,141.52,141.46,9.70925256]
[1641811701042,5.65383576,141.5,141.47,14.98544292]
[1641811701441,5.65383576,141.5,141.47,16.98544292]
[1641811701941,5.65383576,141.5,141.47,2.0]
[1641811702441,4.0027312,141.49,141.48,2.32377213]
[1641811703241,11.3527312,141.49,141.48,2.32377213]
[1641811703546,13.3527312,141.49,141.48,7.213e-05]
[1641811703742,13.3527312,141.49,141.43,24.69469548]
[1641811703743,19.00715393,141.49,141.43,24.69469548]
[1641811703943,7.65514196,141.47,141.43,24.69469548]
[1641811704143,5.65587752,141.45,141.43,24.69469548]
[1641811704443,13.07787752,141.45,141.43,24.69469548]
[1641811704743,13.07787752,141.45,141.43,2.39920703]
[1641811705143,4.00400855,141.44,141.43,2.39920703]
[1641811705744,4.00400855,141.44,141.41,2.0]
[1641811706148,4.00400855,141.44,141.38,24.69469548]
[1641811706347,6.00400855,141.44,141.4,2.0]
[1641811706547,6.00400855,141.44,141.38,24.69469548]
[1641811706747,4.00400855,141.43,141.4,2.0]
[1641811707651,4.00400855,141.43,141.38,2.39377976]
[1641811707855,2.0,141.42,141.37,14.98544292]
[1641811708053,8.646,141.42,141.37,14.98544292]
[1641811708253,6.646,141.42,141.37,16.98544292]
[1641811708455,2.0,141.41,141.37,14.98544292]
[1641811708655,2.0,141.4,141.37,14.98544292]
[1641811708854,6.00488895,141.4,141.38,2.39079338]
[1641811709455,2.0,141.4,141.38,2.39079338]
[1641811709954,2.0,141.39,141.38,2.39079338]
[1641811710155,14.7242562,141.39,141.35,2.39079338]
[1641811710355,16.72920974,141.39,141.35,2.39079338]
[1641811710755,12.7242562,141.39,141.35,2.39079338]
[1641811711057,12.7242562,141.39,141.37,2.0]
[1641811711955,12.7242562,141.39,141.34,34.6404]
[1641811712155,12.7242562,141.39,141.33,14.98544292]
[1641811712355,12.7242562,141.39,141.36,2.0]
[1641811713957,5.65708423,141.42,141.38,2.0]
[1641811714660,4.00451913,141.41,141.38,2.0]
[1641811714858,4.00451913,141.41,141.36,9.322]
[1641811716962,4.00451913,141.41,141.37,2.38526115]
[1641811717562,4.00451913,141.41,141.35,2.38526115]
[1641811719364,4.00451913,141.41,141.36,1.80833293]
[1641811719964,6.00451913,141.41,141.36,1.80833293]
[1641811720564,2.0,141.41,141.36,1.80833293]
[1641811721368,2.0,141.41,141.35,1.80833293]
[1641811721967,2.0,141.41,141.36,2.38518455]
[1641811722366,2.0,141.41,141.37,1.80833293]
[1641811723267,7.65761423,141.41,141.37,1.80833293]
[1641811723770,7.65761423,141.41,141.38,2.0]
[1641811723971,5.65775685,141.4,141.37,1.80833293]
[1641811724268,5.65844025,141.39,141.35,2.0]
[1641811724769,5.65844025,141.39,141.33,24.6592143]
[1641811724969,5.65844025,141.39,141.35,2.0]
[1641811725569,5.65844025,141.39,141.32,51.62444292]
[1641811726069,5.65844025,141.39,141.36,2.0]
[1641811726872,5.65844025,141.39,141.32,55.62444292]
[1641811727373,5.65844025,141.39,141.36,2.0]
[1641811730680,5.65844025,141.39,141.37,2.394916]
[1641811731281,4.0054494,141.38,141.37,2.394916]
[1641811731477,11.5294494,141.38,141.37,2.394916]
[1641811731680,11.5294494,141.38,141.34,2.0]
[1641811732278,7.524,141.38,141.34,2.0]
[1641811732479,7.524,141.38,141.32,51.62444292]
[1641811732680,7.524,141.38,141.35,2.39788192]
[1641811734284,7.524,141.38,141.33,27.10581831]
[1641811735182,15.18288241,141.38,141.34,2.0]
[1641811735382,13.18288241,141.38,141.34,2.0]
[1641811735985,13.18288241,141.38,141.35,2.39788192]
[1641811739287,13.18288241,141.38,141.36,1.80929523]
[1641811740085,13.18288241,141.38,141.37,2.0]
[1641811740288,2.0,141.41,141.37,11.42488192]
[1641811740586,2.0,141.41,141.37,11.23417715]
[1641811740987,2.0,141.41,141.39,2.0]
[1641811741187,2.0,141.41,141.38,4.20717715]
[1641811741391,2.0,141.41,141.4,1.80929523]
[1641811741888,2.0,141.41,141.4,4.20717715]
[1641811742087,6.00486323,141.41,141.4,2.39788192]
[1641811742287,6.00486323,141.41,141.4,0.58868192]
[1641811742489,8.00486323,141.41,141.4,0.58868192]
[1641811742688,8.00486323,141.41,141.4,1.80929523]
[1641811743590,6.00486323,141.41,141.37,1.80929523]
[1641811743790,8.00486323,141.41,141.37,1.80929523]
[1641811743992,4.00486323,141.4,141.37,1.80929523]
[1641811746692,6.00486323,141.4,141.37,1.80929523]
[1641811746893,11.66280505,141.4,141.37,1.80929523]
[1641811747092,4.00486323,141.39,141.36,3.80929523]
[1641811747292,11.23086323,141.39,141.36,3.80929523]
[1641811747495,11.23086323,141.39,141.37,1.80929523]
[1641811747893,4.00486323,141.38,141.37,1.80929523]
[1641811749196,4.00486323,141.38,141.35,1.80929523]
[1641811749598,4.00486323,141.38,141.35,3.80929523]
[1641811749898,6.00486323,141.38,141.35,3.80929523]
[1641811750099,6.00486323,141.38,141.36,1.80929523]
[1641811750498,2.0,141.38,141.36,1.80929523]
[1641811751299,2.0,141.38,141.35,2.0]
[1641811751300,2.0,141.37,141.35,1.80929523]
[1641811751499,2.0,141.37,141.35,16.79473815]
[1641811751704,6.00584413,141.37,141.35,14.98544292]
[1641811752100,4.00584413,141.36,141.35,14.98544292]
[1641811752300,11.48584413,141.36,141.35,14.98544292]
[1641811752501,11.48584413,141.36,141.33,34.6349]
[1641811752802,11.48584413,141.36,141.32,69.40134724]
[1641811752803,11.48584413,141.36,141.32,14.98544292]
[1641811753002,7.48,141.36,141.32,14.98544292]
[1641811753704,7.48,141.36,141.32,16.98544292]
[1641811754604,7.48,141.36,141.32,14.98544292]
[1641811754903,7.48,141.36,141.35,2.0]
[1641811755404,11.48580174,141.36,141.35,2.0]
[1641811759006,7.48,141.36,141.35,2.0]
[1641811759207,2.0,141.38,141.35,2.0]
[1641811759809,4.00531135,141.37,141.35,2.0]
[1641811761916,4.00531135,141.37,141.32,14.98544292]
[1641811762415,2.0,141.38,141.32,14.98544292]
[1641811762816,2.0,141.38,141.31,9.73247989]
[1641811762817,2.0,141.38,141.33,14.98544292]
[1641811763219,4.0,141.38,141.35,2.0]
[1641811763420,4.0,141.38,141.33,14.98544292]
[1641811763617,2.0,141.36,141.33,14.98544292]
[1641811763818,9.681,141.36,141.33,14.98544292]
[1641811764220,2.0,141.34,141.33,14.98544292]
[1641811764420,5.66071347,141.33,141.31,9.73247989]
[1641811764621,2.0,141.32,141.31,14.98481615]
[1641811764821,14.24571347,141.33,141.31,14.98481615]
[1641811765022,6.00547099,141.32,141.31,14.98481615]
[1641811765627,6.00547099,141.32,141.27,75.13902962]
[1641811765824,2.0,141.31,141.27,75.13902962]
[1641811766022,2.0,141.3,141.27,33.4154]
[1641811766221,9.053,141.3,141.27,33.4154]
[1641811766422,9.053,141.3,141.24,39.72362962]
[1641811766822,7.053,141.3,141.28,1.81076344]
[1641811767022,7.053,141.3,141.29,2.0]
[1641811767222,32.8123,141.32,141.29,2.0]
[1641811767422,2.0,141.33,141.29,2.0]
[1641811767623,2.0,141.33,141.3,1.81076344]
[1641811767822,2.0,141.34,141.3,1.81076344]
[1641811768029,2.0,141.33,141.3,1.81076344]
[1641811768223,4.00651064,141.32,141.3,1.81076344]
[1641811768625,2.0,141.33,141.27,1.81076344]
[1641811768825,2.0,141.33,141.28,2.0]
[1641811769025,2.0,141.33,141.27,11.51611914]
[1641811769226,2.0,141.32,141.27,11.51611914]
[1641811769627,6.0067287,141.32,141.28,1.81076344]
[1641811770026,2.0,141.29,141.28,1.81076344]
[1641811770228,11.339,141.29,141.25,9.70587333]
[1641811770427,2.0,141.27,141.25,9.70587333]
[1641811771030,9.339,141.29,141.25,9.70587333]
[1641811771230,9.339,141.29,141.24,2.0]
[1641811771231,5.66296258,141.27,141.24,2.0]
[1641811771431,5.66296258,141.27,141.26,1.43176606]
[1641811772234,5.66296258,141.27,141.26,3.43176606]
[1641811772434,6.79422829,141.3,141.26,3.43176606]
[1641811772831,6.79422829,141.3,141.27,1.43176606]
[1641811773031,6.79422829,141.3,141.27,3.43176606]
[1641811773230,6.79422829,141.3,141.27,2.0]
[1641811773636,6.79422829,141.3,141.28,1.43176606]
[1641811774031,6.79422829,141.3,141.26,1.43176606]
[1641811774432,6.79422829,141.3,141.27,2.0]
[1641811774632,12.45615475,141.3,141.26,1.43176606]
[1641811775534,5.66192646,141.3,141.27,2.0]
[1641811775932,5.66192646,141.3,141.28,1.43176606]
[1641811776533,6.79242351,141.34,141.29,2.0]
[1641811776733,5.65892772,141.37,141.33,2.0]
[1641811777033,5.65892772,141.37,141.33,9.121]
[1641811777438,5.65892772,141.37,141.34,1.43176606]
[1641811777637,5.6600265,141.35,141.34,1.43176606]
[1641811777835,13.9150265,141.35,141.34,1.43176606]
[1641811778035,13.9150265,141.35,141.3,2.0]
[1641811778235,13.9150265,141.35,141.29,33.4311]
[1641811778437,13.9150265,141.35,141.31,2.0]
[1641811778638,13.9150265,141.35,141.29,33.4311]
[1641811778836,7.66080321,141.33,141.31,2.0]
[1641811779236,7.66080321,141.33,141.32,1.12991811]
[1641811780037,5.66080321,141.33,141.29,2.0]
[1641811780438,5.66080321,141.33,141.3,1.12991811]
[1641811781740,7.66080321,141.33,141.3,1.12991811]
[1641811781941,5.66093464,141.32,141.3,1.12991811]
[1641811782142,13.91293464,141.32,141.3,1.12991811]
[1641811782742,13.91293464,141.32,141.29,2.0]
[1641811782944,13.91293464,141.32,141.28,1.12991811]
[1641811783141,13.91293464,141.32,141.3,1.12991811]
[1641811783544,13.91293464,141.32,141.28,1.12991811]
[1641811783943,13.91293464,141.32,141.29,2.0]
[1641811784444,13.91293464,141.32,141.3,1.12991811]
[1641811785145,13.91293464,141.32,141.3,3.12991811]
[1641811785445,13.91293464,141.32,141.3,2.0]
[1641811785645,13.91293464,141.32,141.31,1.12991811]
[1641811786547,17.91988137,141.32,141.28,1.12991811]
[1641811786947,4.00694673,141.31,141.29,2.0]
[1641811787147,4.00694673,141.31,141.28,1.12991811]
[1641811787447,4.00694673,141.31,141.3,1.12991811]
[1641811787947,5.66093464,141.32,141.29,4.39117696]
[1641811788147,7.66002502,141.35,141.31,2.0]
[1641811788348,7.66002502,141.35,141.32,2.0]
[1641811788749,4.00625987,141.34,141.33,1.12991811]
[1641811789148,5.66069707,141.33,141.31,1.12991811]
[1641811789548,4.00625987,141.32,141.31,1.12991811]
[1641811789949,5.66069707,141.33,141.31,1.12991811]
[1641811790349,4.00657031,141.32,141.31,1.12991811]
[1641811791850,4.00657031,141.32,141.3,1.12991811]
[1641811793354,4.00657031,141.32,141.31,2.39600585]
[1641811793756,4.00657031,141.32,141.31,3.52592396]
[1641811794556,2.1355896,141.31,141.29,2.0]
[1641811794755,10.49957031,141.32,141.29,2.0]
[1641811794955,6.493,141.32,141.29,2.0]
[1641811795860,6.493,141.32,141.31,2.0]
[1641811796061,2.0,141.35,141.31,2.0]
[1641811796459,2.0,141.35,141.32,0.89230808]
[1641811796460,4.0,141.35,141.32,0.89230808]
[1641811796658,2.0,141.35,141.32,0.89230808]
[1641811797258,2.0,141.35,141.3,0.89230808]
[1641811797458,2.0,141.34,141.3,0.89230808]
[1641811797660,13.349,141.35,141.3,0.89230808]
[1641811797859,2.0,141.34,141.3,0.89230808]
[1641811799158,13.349,141.35,141.3,0.89230808]
[1641811799361,11.349,141.35,141.3,0.89230808]
[1641811799660,11.349,141.35,141.32,2.0]
[1641811800059,2.0,141.35,141.33,0.89230808]